fUSD/lending_fUSD_20250313
["ID","MTS","AMOUNT","RATE_DAILY","PERIOD"]
[356065662,1741877505915,-514.25,0.00028443,18]
[356065663,1741877505930,-500.0,0.00028443,18]
[356065664,1741877505945,-500.0,0.00028443,18]
[356065665,1741877505960,-805.12,0.00028443,18]
[356065666,1741877505975,-500.0,0.00028443,18]
[356065667,1741877505990,-500.0,0.00028443,18]
[356065668,1741877506006,-302.24866563,0.00028443,18]
[356065669,1741877506021,-1000.0,0.00028443,18]
[356065670,1741877506037,-3749.8,0.00028443,18]
[356065671,1741877506052,-2736.88,0.00028443,18]
[356065672,1741877506070,-556.23,0.00028443,18]
[356065673,1741877506085,-500.0,0.00028443,18]
[356065674,1741877506100,-500.0,0.00028443,18]
[356065675,1741877506115,-500.0,0.00028443,18]
[356065676,1741877506131,-848.53,0.00028443,18]
[356065677,1741877506147,-848.53,0.00028443,18]
[356065678,1741877506161,-848.53,0.00028443,18]
[356065679,1741877506177,-848.53,0.00028443,18]
[356065680,1741877506192,-848.53,0.00028443,18]
[356065681,1741877506207,-944.89,0.00028443,18]
[356065682,1741877506223,-848.53,0.00028443,18]
[356065683,1741877506238,-500.0,0.00028443,18]
[356065684,1741877506253,-848.76224708,0.00028443,18]
[356065685,1741877506268,-521.85887062,0.00028443,18]
[356065686,1741877506282,-500.0,0.00028443,18]
[356065687,1741877506300,-500.0,0.00028443,18]
[356065688,1741877506316,-500.0,0.00028443,18]
[356065689,1741877506330,-500.0,0.00028443,18]
[356065690,1741877506345,-503.93,0.00028443,18]
[356065691,1741877506359,-500.0,0.00028443,18]
[356065692,1741877506374,-500.0,0.00028443,18]
[356065693,1741877506389,-500.0,0.00028443,18]
[356065694,1741877506404,-500.0,0.00028443,18]
[356065695,1741877506420,-500.0,0.00028443,18]
[356065696,1741877506435,-1721.54,0.00028443,18]
[356065697,1741877506450,-691.19,0.00028443,18]
[356065698,1741877506467,-691.19,0.00028443,18]
[356065699,1741877506483,-500.0,0.00028443,18]
[356065700,1741877506498,-501.4,0.00028443,18]
[356065701,1741877506513,-501.4,0.00028443,18]
[356065702,1741877506528,-501.4,0.00028443,18]
[356065703,1741877506543,-501.4,0.00028443,18]
[356065704,1741877506559,-501.4,0.00028443,18]
[356065705,1741877506574,-500.0,0.00028443,18]
[356065706,1741877506589,-501.4,0.00028443,18]
[356065707,1741877506604,-501.51026561,0.00028443,18]
[356065708,1741877506618,-565.02,0.00028443,18]
[356065709,1741877506634,-500.0,0.00028443,18]
[356065710,1741877506648,-500.0,0.00028443,18]
[356065711,1741877506663,-1201.08,0.00028443,18]
[356065712,1741877506679,-1201.08,0.00028443,18]
[356065713,1741877506694,-1201.08,0.00028443,18]
[356065714,1741877506709,-1201.08,0.00028443,18]
[356065715,1741877506724,-1201.08,0.00028443,18]
[356065716,1741877506739,-1201.08,0.00028443,18]
[356065717,1741877506755,-1201.3079753,0.00028443,18]
[356065718,1741877506771,-617.67,0.00028443,18]
[356065719,1741877506992,-617.67,0.00028443,18]
[356065720,1741877507003,-500.0,0.00028443,18]
[356065721,1741877507012,-500.0,0.00028443,18]
[356065722,1741877507022,-2839.76,0.00028443,18]
[356065723,1741877507032,-583.61,0.00028443,18]
[356065724,1741877507043,-2263.25,0.00028443,18]
[356065725,1741877507053,-1507.84,0.00028443,18]
[356065726,1741877507065,-749.62,0.00028443,18]
[356065727,1741877507074,-1329.69,0.00028443,18]
[356065728,1741877507084,-1329.69,0.00028443,18]
[356065729,1741877507094,-1329.69,0.00028443,18]
[356065730,1741877507104,-580.97,0.00028443,18]
[356065731,1741877507114,-580.97,0.00028443,18]
[356065732,1741877507123,-1329.69,0.00028443,18]
[356065733,1741877507133,-1329.69,0.00028443,18]
[356065734,1741877507143,-1329.69,0.00028443,18]
[356065735,1741877507153,-1329.71884052,0.00028443,18]
[356065736,1741877507162,-500.0,0.00028443,18]
[356065737,1741877507173,-351.76495773,0.00028443,18]
[356065738,1741877507182,-500.0,0.00028443,18]
[356065739,1741877507191,-573.25,0.00028443,18]
[356065740,1741877507201,-500.0,0.00028443,18]
[356065741,1741877507211,-573.25,0.00028443,18]
[356065742,1741877507221,-573.25,0.00028443,18]
[356065743,1741877507230,-573.25,0.00028443,18]
[356065744,1741877507240,-573.25,0.00028443,18]
[356065745,1741877507249,-573.25,0.00028443,18]
[356065746,1741877507258,-573.34881474,0.00028443,18]
[356065747,1741877507267,-714.67,0.00028443,18]
[356065748,1741877507277,-714.67,0.00028443,18]
[356065749,1741877507287,-714.67,0.00028443,18]
[356065750,1741877507297,-714.67,0.00028443,18]
[356065751,1741877507306,-714.67,0.00028443,18]
[356065752,1741877507321,-714.67,0.00028443,18]
[356065753,1741877507331,-714.67449142,0.00028443,18]
[356065754,1741877507340,-500.0,0.00028443,18]
[356065755,1741877507350,-500.0,0.00028443,18]
[356065756,1741877507360,-500.0,0.00028443,18]
[356065757,1741877507370,-500.0,0.00028443,18]
[356065758,1741877507379,-500.0,0.00028443,18]
[356065759,1741877507389,-582.82,0.00028443,18]
[356065760,1741877507398,-582.82,0.00028443,18]
[356065761,1741877507408,-591.54,0.00028443,18]
[356065762,1741877507417,-582.82,0.00028443,18]
[356065763,1741877507427,-500.0,0.00028444,18]
[356065764,1741877507436,-500.0,0.00028444,18]
[356065765,1741877507445,-500.54014813,0.00028444,18]
[356065766,1741877507455,-500.47537823,0.00028444,18]
[356065767,1741877507464,-500.0,0.00028444,18]
[356065768,1741877507473,-500.0,0.00028444,18]
[356065769,1741877507484,-500.0,0.00028444,18]
[356065770,1741877507493,-500.0,0.00028444,18]
[356065771,1741877507503,-500.0,0.00028444,18]
[356065772,1741877507512,-516.49482926,0.00028444,18]
[356065773,1741877507521,-500.0,0.00028444,18]
[356065774,1741877507531,-413.31198809,0.00028444,18]
[356065775,1741877507541,-502.31185345,0.00028444,18]
[356065776,1741877507550,-502.42912733,0.00028444,18]
[356065777,1741877507560,-300.0,0.00028444,18]
[356065778,1741877507574,-500.0,0.00028444,18]
[356065779,1741877507583,-500.0,0.00028444,18]
[356065780,1741877507593,-500.0,0.00028444,18]
[356065781,1741877507602,-500.0,0.00028444,16]
[356065782,1741877507612,-500.0,0.00028444,18]
[356065783,1741877507622,-501.35430873,0.00028444,18]
[356065784,1741877507631,-500.0,0.00028444,18]
[356065785,1741877507640,-500.0,0.00028444,18]
[356065786,1741877507650,-500.0,0.00028444,18]
[356065787,1741877507659,-447.99123606,0.00028444,18]
[356065788,1741877507668,-441.37749494,0.00028444,18]
[356065789,1741877507677,-500.0,0.00028444,18]
[356065790,1741877507687,-500.0,0.00028444,18]
[356065791,1741877507696,-500.0,0.00028444,18]
[356065792,1741877507705,-500.33618759,0.00028444,2]
[356065793,1741877507715,-500.38230619,0.00028444,3]
[356065794,1741877507724,-500.0,0.00028444,18]
[356065795,1741877507734,-500.0,0.00028444,18]
[356065796,1741877507744,-500.0,0.00028444,18]
[356065797,1741877507753,-500.0,0.00028444,18]
[356065798,1741877507763,-500.0,0.00028444,18]
[356065799,1741877507773,-547.84925077,0.00028444,18]
[356065800,1741877507782,-500.0,0.00028444,18]
[356065801,1741877507791,-500.0,0.00028444,18]
[356065802,1741877507800,-500.0,0.00028444,18]
[356065803,1741877507810,-500.0,0.00028444,18]
[356065804,1741877507824,-500.0,0.00028444,18]
[356065805,1741877507834,-481.53603632,0.00028444,18]
[356065806,1741877507847,-500.0,0.00028444,18]
[356065807,1741877507856,-502.42277152,0.00028444,18]
[356065808,1741877507866,-500.0,0.00028444,18]
[356065809,1741877507875,-500.0,0.00028444,18]
[356065810,1741877507886,-500.0,0.00028444,18]
[356065811,1741877507895,-500.0,0.00028444,18]
[356065812,1741877507904,-500.0,0.00028444,18]
[356065813,1741877507914,-500.0,0.00028444,18]
[356065814,1741877507924,-502.34,0.00028444,18]
[356065815,1741877507934,-500.0,0.00028444,18]
[356065816,1741877507943,-500.0,0.00028444,18]
[356065817,1741877507953,-500.0,0.00028444,18]
[356065818,1741877507962,-500.302993,0.00028444,18]
[356065819,1741877507972,-500.0,0.00028444,18]
[356065820,1741877507982,-500.54248249,0.00028444,18]
[356065821,1741877507992,-599.30680983,0.00028444,18]
[356065822,1741877508003,-500.0,0.00028444,18]
[356065823,1741877508012,-467.83160887,0.00028444,18]
[356065824,1741877508023,-500.0,0.00028444,18]
[356065825,1741877508033,-500.0,0.00028444,18]
[356065826,1741877508043,-500.0,0.00028444,18]
[356065827,1741877508053,-500.0,0.00028444,18]
[356065828,1741877508063,-500.0,0.00028444,18]
[356065829,1741877508073,-500.0,0.00028444,18]
[356065830,1741877508082,-500.0,0.00028444,18]
[356065831,1741877508092,-500.0,0.00028444,18]
[356065832,1741877508102,-500.0,0.00028444,18]
[356065833,1741877508112,-500.0,0.00028444,18]
[356065834,1741877508121,-810.74,0.00028444,18]
[356065835,1741877508131,-810.74,0.00028444,18]
[356065836,1741877508140,-500.0,0.00028444,18]
[356065837,1741877508150,-500.0,0.00028444,18]
[356065838,1741877508160,-500.0,0.00028444,18]
[356065839,1741877508169,-500.0,0.00028444,18]
[356065840,1741877508179,-561.76,0.00028444,18]
[356065841,1741877508189,-561.76,0.00028444,18]
[356065842,1741877508199,-500.0,0.00028444,18]
[356065843,1741877508208,-500.0,0.00028444,18]
[356065844,1741877508218,-640.13,0.00028444,18]
[356065845,1741877508227,-500.0,0.00028444,18]
[356065846,1741877508236,-500.0,0.00028444,18]
[356065847,1741877508246,-500.0,0.00028444,18]
[356065848,1741877508256,-523.76,0.00028444,18]
[356065849,1741877508266,-523.76,0.00028444,18]
[356065850,1741877508275,-500.0,0.00028444,18]
[356065851,1741877508286,-500.0,0.00028444,18]
[356065852,1741877508295,-500.0,0.00028444,18]
[356065853,1741877508305,-537.93187309,0.00028444,18]
[356065854,1741877508316,-500.0,0.00028444,18]
[356065855,1741877508327,-500.0,0.00028444,18]
[356065856,1741877508335,-538.91,0.00028444,18]
[356065857,1741877508345,-538.91,0.00028444,18]
[356065858,1741877508356,-500.0,0.00028444,18]
[356065859,1741877508365,-539.92,0.00028444,18]
[356065860,1741877508375,-539.92,0.00028444,18]
[356065861,1741877508385,-500.0,0.00028444,18]
[356065862,1741877508395,-500.0,0.00028444,18]
[356065863,1741877508404,-500.0,0.00028444,18]
[356065864,1741877508414,-727.13,0.00028444,18]
[356065865,1741877508424,-500.0,0.00028444,18]
[356065866,1741877508434,-500.0,0.00028444,18]
[356065867,1741877508444,-500.0,0.00028444,18]
[356065868,1741877508453,-500.0,0.00028444,18]
[356065869,1741877508464,-500.0,0.00028444,18]
[356065870,1741877508473,-500.0,0.00028444,18]
[356065871,1741877508483,-401.59575586,0.00028444,18]
[356065872,1741877508493,-409.5800023,0.00028444,18]
[356065873,1741877508502,-557.95,0.00028444,18]
[356065874,1741877508512,-557.95,0.00028444,18]
[356065875,1741877508522,-500.0,0.00028444,18]
[356065876,1741877508532,-500.0,0.00028444,18]
[356065877,1741877508542,-500.0,0.00028444,18]
[356065878,1741877508551,-621.92,0.00028444,18]
[356065879,1741877508563,-621.92,0.00028444,18]
[356065880,1741877508572,-500.0,0.00028444,18]
[356065881,1741877508582,-500.0,0.00028444,18]
[356065882,1741877508592,-692.0,0.00028444,18]
[356065883,1741877508602,-692.0,0.00028444,18]
[356065884,1741877508612,-500.0,0.00028444,18]
[356065885,1741877508621,-500.0,0.00028444,18]
[356065886,1741877508631,-622.0,0.00028444,18]
[356065887,1741877508640,-629.04,0.00028444,18]
[356065888,1741877508650,-629.04,0.00028444,18]
[356065889,1741877508661,-500.0,0.00028444,18]
[356065890,1741877508670,-618.22,0.00028444,18]
[356065891,1741877508680,-500.0,0.00028444,18]
[356065892,1741877508690,-618.22,0.00028444,18]
[356065893,1741877508700,-500.0,0.00028444,18]
[356065894,1741877508709,-500.0,0.00028444,18]
[356065895,1741877508718,-561.75,0.00028444,18]
[356065896,1741877508728,-868.46,0.00028444,18]
[356065897,1741877508738,-561.75,0.00028444,18]
[356065898,1741877508748,-868.46,0.00028444,18]
[356065899,1741877508757,-1222.98,0.00028444,18]
[356065900,1741877508767,-1173.83,0.00028444,18]
[356065901,1741877508776,-1173.83,0.00028444,18]
[356065902,1741877508785,-1076.94,0.00028444,18]
[356065903,1741877508795,-638.02,0.00028444,18]
[356065904,1741877508805,-638.02,0.00028444,18]
[356065905,1741877508815,-710.42,0.00028444,18]
[356065906,1741877508825,-710.42,0.00028444,18]
[356065907,1741877508835,-920.42,0.00028444,18]
[356065908,1741877508849,-568.85,0.00028444,18]
[356065909,1741877508859,-568.85,0.00028444,18]
[356065910,1741877508869,-500.0,0.00028444,18]
[356065911,1741877508879,-660.04,0.00028444,18]
[356065912,1741877508891,-660.04,0.00028444,18]
[356065913,1741877508901,-500.0,0.00028444,18]
[356065914,1741877508911,-806.85,0.00028444,18]
[356065915,1741877508922,-500.0,0.00028444,18]
[356065916,1741877508932,-500.0,0.00028444,18]
[356065917,1741877508941,-500.0,0.00028444,18]
[356065918,1741877508951,-778.43,0.00028444,18]
[356065919,1741877508961,-778.43,0.00028444,18]
[356065920,1741877508971,-898.3,0.00028444,18]
[356065921,1741877508980,-500.0,0.00028444,18]
[356065922,1741877508990,-898.3,0.00028444,18]
[356065923,1741877509000,-500.0,0.00028444,18]
[356065924,1741877509010,-612.98,0.00028444,18]
[356065925,1741877509020,-500.0,0.00028444,18]
[356065926,1741877509030,-500.0,0.00028444,18]
[356065927,1741877509040,-500.0,0.00028444,18]
[356065928,1741877509049,-500.0,0.00028444,18]
[356065929,1741877509060,-500.0,0.00028444,18]
[356065930,1741877509070,-500.0,0.00028444,18]
[356065931,1741877509080,-649.27,0.00028444,18]
[356065932,1741877509090,-649.27,0.00028444,18]
[356065933,1741877509100,-654.17,0.00028444,18]
[356065934,1741877509110,-1005.2,0.00028444,18]
[356065935,1741877509120,-1005.2,0.00028444,18]
[356065936,1741877509130,-556.85,0.00028444,18]
[356065937,1741877509140,-556.85,0.00028444,18]
[356065938,1741877509151,-658.91,0.00028444,18]
[356065939,1741877509161,-675.33,0.00028444,18]
[356065940,1741877509172,-675.33,0.00028444,18]
[356065941,1741877509182,-500.0,0.00028444,18]
[356065942,1741877509192,-500.0,0.00028444,18]
[356065943,1741877509202,-500.0,0.00028444,18]
[356065944,1741877509211,-500.0,0.00028444,18]
[356065945,1741877509221,-464.83040344,0.00028444,18]
[356065946,1741877509231,-798.69,0.00028444,18]
[356065947,1741877509242,-798.69,0.00028444,18]
[356065948,1741877509251,-500.0,0.00028444,18]
[356065949,1741877509405,-500.0,0.00028444,18]
[356065950,1741877509419,-500.0,0.00028444,18]
[356065951,1741877509430,-500.0,0.00028444,18]
[356065952,1741877509440,-500.0,0.00028444,18]
[356065953,1741877509449,-639.12809978,0.00028444,18]
[356065954,1741877509458,-500.0,0.00028444,18]
[356065955,1741877509467,-500.0,0.00028444,18]
[356065956,1741877509477,-598.07,0.00028444,18]
[356065957,1741877509485,-598.07,0.00028444,18]
[356065958,1741877509495,-654.57,0.00028444,18]
[356065959,1741877509504,-654.57,0.00028444,18]
[356065960,1741877509513,-500.0,0.00028444,18]
[356065961,1741877509523,-500.0,0.00028444,18]
[356065962,1741877509532,-691.39,0.00028444,18]
[356065963,1741877509541,-719.79,0.00028444,18]
[356065964,1741877509551,-719.79,0.00028444,18]
[356065965,1741877509560,-500.0,0.00028444,18]
[356065966,1741877509571,-500.0,0.00028444,18]
[356065967,1741877509581,-500.0,0.00028444,18]
[356065968,1741877509591,-543.25,0.00028444,18]
[356065969,1741877509600,-543.25,0.00028444,18]
[356065970,1741877509610,-753.81,0.00028444,18]
[356065971,1741877509619,-500.0,0.00028444,18]
[356065972,1741877509628,-500.0,0.00028444,18]
[356065973,1741877509638,-829.63,0.00028444,18]
[356065974,1741877509647,-520.97,0.00028444,18]
[356065975,1741877509656,-520.97,0.00028444,18]
[356065976,1741877509665,-500.0,0.00028444,18]
[356065977,1741877509674,-500.0,0.00028444,18]
[356065978,1741877509683,-532.4,0.00028444,18]
[356065979,1741877509692,-500.0,0.00028444,18]
[356065980,1741877509701,-500.0,0.00028444,18]
[356065981,1741877509711,-628.41,0.00028444,18]
[356065982,1741877509720,-500.0,0.00028444,18]
[356065983,1741877509729,-500.0,0.00028444,18]
[356065984,1741877509739,-500.0,0.00028444,18]
[356065985,1741877509748,-559.71,0.00028444,18]
[356065986,1741877509757,-559.71,0.00028444,18]
[356065987,1741877509767,-500.0,0.00028444,18]
[356065988,1741877509776,-742.58,0.00028444,18]
[356065989,1741877509785,-742.58,0.00028444,18]
[356065990,1741877509795,-657.69,0.00028444,18]
[356065991,1741877509804,-500.0,0.00028444,18]
[356065992,1741877509814,-500.0,0.00028444,18]
[356065993,1741877509823,-500.0,0.00028444,18]
[356065994,1741877509833,-568.49,0.00028444,18]
[356065995,1741877509845,-500.0,0.00028444,18]
[356065996,1741877509855,-597.17,0.00028444,18]
[356065997,1741877509864,-597.17,0.00028444,18]
[356065998,1741877509873,-500.0,0.00028444,18]
[356065999,1741877509885,-841.6,0.00028444,18]
[356066000,1741877509894,-841.6,0.00028444,18]
[356066001,1741877509904,-863.22,0.00028444,18]
[356066002,1741877509914,-863.22,0.00028444,18]
[356066003,1741877509924,-646.84,0.00028444,18]
[356066004,1741877509934,-500.0,0.00028444,18]
[356066005,1741877509944,-500.0,0.00028444,18]
[356066006,1741877509953,-500.0,0.00028444,18]
[356066007,1741877509963,-500.0,0.00028444,18]
[356066008,1741877509973,-677.32,0.00028444,18]
[356066009,1741877509983,-432.02726535,0.00028444,18]
[356066010,1741877509992,-677.32,0.00028444,18]
[356066011,1741877510002,-1079.98,0.00028444,18]
[356066012,1741877510011,-1079.98,0.00028444,18]
[356066013,1741877510020,-437.88429685,0.00028444,18]
[356066014,1741877510030,-502.92,0.00028444,18]
[356066015,1741877510039,-701.64,0.00028444,18]
[356066016,1741877510049,-701.64,0.00028444,18]
[356066017,1741877510058,-500.0,0.00028444,18]
[356066018,1741877510068,-500.0,0.00028444,18]
[356066019,1741877510077,-500.0,0.00028444,18]
[356066020,1741877510088,-558.34,0.00028444,18]
[356066021,1741877510098,-558.34,0.00028444,18]
[356066022,1741877510107,-1464.57,0.00028444,7]
[356066023,1741877510116,-500.0,0.00028444,18]
[356066024,1741877510126,-500.0,0.00028444,18]
[356066025,1741877510135,-500.0,0.00028444,18]
[356066026,1741877510144,-500.0,0.00028444,18]
[356066027,1741877510153,-771.25,0.00028444,18]
[356066028,1741877510163,-500.0,0.00028444,18]
[356066029,1741877510172,-590.79,0.00028444,18]
[356066030,1741877510181,-616.64,0.00028444,18]
[356066031,1741877510191,-616.64,0.00028444,18]
[356066032,1741877510200,-508.87,0.00028444,18]
[356066033,1741877510210,-500.0,0.00028444,18]
[356066034,1741877510219,-683.37,0.00028444,18]
[356066035,1741877510229,-683.37,0.00028444,18]
[356066036,1741877510239,-500.0,0.00028444,18]
[356066037,1741877510248,-500.0,0.00028444,18]
[356066038,1741877510258,-500.0,0.00028444,18]
[356066039,1741877510267,-500.0,0.00028444,18]
[356066040,1741877510277,-500.0,0.00028444,18]
[356066041,1741877510287,-500.0,0.00028444,18]
[356066042,1741877510296,-500.0,0.00028444,18]
[356066043,1741877510306,-500.0,0.00028444,18]
[356066044,1741877510317,-500.0,0.00028444,18]
[356066045,1741877510326,-500.0,0.00028444,18]
[356066046,1741877510336,-500.0,0.00028444,18]
[356066047,1741877510345,-1197.54,0.00028444,18]
[356066048,1741877510355,-500.0,0.00028444,18]
[356066049,1741877510364,-1197.54,0.00028444,18]
[356066050,1741877510373,-1057.56,0.00028444,18]
[356066051,1741877510383,-500.0,0.00028444,18]
[356066052,1741877510392,-508.80590813,0.00028444,18]
[356066053,1741877510402,-603.19,0.00028444,18]
[356066054,1741877510411,-603.19,0.00028444,18]
[356066055,1741877510420,-500.0,0.00028444,18]
[356066056,1741877510430,-500.0,0.00028444,18]
[356066057,1741877510439,-500.0,0.00028444,18]
[356066058,1741877510448,-500.0,0.00028444,18]
[356066059,1741877510458,-500.0,0.00028444,18]
[356066060,1741877510467,-500.0,0.00028444,18]
[356066061,1741877510476,-500.0,0.00028444,18]
[356066062,1741877510485,-500.0,0.00028444,18]
[356066063,1741877510495,-1048.8,0.00028444,18]
[356066064,1741877510505,-343.85980581,0.00028444,18]
[356066065,1741877510514,-500.0,0.00028444,18]
[356066066,1741877510523,-500.0,0.00028444,18]
[356066067,1741877510533,-889.61,0.00028444,18]
[356066068,1741877510542,-889.61,0.00028444,18]
[356066069,1741877510551,-520.42,0.00028444,18]
[356066070,1741877510561,-500.0,0.00028444,18]
[356066071,1741877510571,-537.09,0.00028444,18]
[356066072,1741877510581,-537.09,0.00028444,18]
[356066073,1741877510590,-500.0,0.00028444,18]
[356066074,1741877510600,-500.0,0.00028444,18]
[356066075,1741877510609,-500.0,0.00028444,18]
[356066076,1741877510618,-775.01,0.00028444,18]
[356066077,1741877510628,-1443.64,0.00028444,18]
[356066078,1741877510637,-500.0,0.00028444,18]
[356066079,1741877510647,-500.0,0.00028444,18]
[356066080,1741877510656,-500.0,0.00028444,18]
[356066081,1741877510670,-500.0,0.00028444,18]
[356066082,1741877510680,-833.0,0.00028444,18]
[356066083,1741877510689,-500.0,0.00028444,18]
[356066084,1741877510699,-500.0,0.00028444,18]
[356066085,1741877510708,-500.0,0.00028444,18]
[356066086,1741877510718,-500.0,0.00028444,18]
[356066087,1741877510727,-547.45,0.00028444,18]
[356066088,1741877510737,-543.74,0.00028444,18]
[356066089,1741877510746,-612.61,0.00028444,18]
[356066090,1741877510756,-1917.35,0.00028444,18]
[356066091,1741877510765,-500.0,0.00028444,18]
[356066092,1741877510774,-500.0,0.00028444,18]
[356066093,1741877510784,-725.3,0.00028444,18]
[356066094,1741877510793,-725.3,0.00028444,18]
[356066095,1741877510803,-508.73,0.00028444,18]
[356066096,1741877510812,-508.73,0.00028444,18]
[356066097,1741877510822,-500.0,0.00028444,18]
[356066098,1741877510832,-989.11,0.00028444,18]
[356066099,1741877510844,-5014.88,0.00028444,18]
[356066100,1741877510853,-5014.88,0.00028444,18]
[356066101,1741877510862,-500.0,0.00028444,18]
[356066102,1741877510872,-605.24,0.00028444,18]
[356066103,1741877510882,-557.36,0.00028444,18]
[356066104,1741877510892,-557.36,0.00028444,18]
[356066105,1741877510901,-500.0,0.00028444,18]
[356066106,1741877510910,-500.0,0.00028444,18]
[356066107,1741877510921,-804.68,0.00028444,18]
[356066108,1741877510932,-589.78,0.00028444,18]
[356066109,1741877510942,-877.44,0.00028444,18]
[356066110,1741877510952,-877.44,0.00028444,18]
[356066111,1741877510961,-500.0,0.00028444,18]
[356066112,1741877510970,-500.0,0.00028444,18]
[356066113,1741877510980,-500.0,0.00028444,18]
[356066114,1741877510989,-500.0,0.00028444,18]
[356066115,1741877510999,-500.0,0.00028444,18]
[356066116,1741877511009,-866.02,0.00028444,18]
[356066117,1741877511018,-845.43,0.00028444,18]
[356066118,1741877511029,-845.43,0.00028444,18]
[356066119,1741877511038,-545.3,0.00028444,18]
[356066120,1741877511048,-1254.42,0.00028444,18]
[356066121,1741877511058,-500.0,0.00028444,18]
[356066122,1741877511069,-500.0,0.00028444,18]
[356066123,1741877511078,-500.0,0.00028444,18]
[356066124,1741877511087,-500.0,0.00028444,18]
[356066125,1741877511096,-536.84920721,0.00028444,18]
[356066126,1741877511105,-411.41030358,0.00028444,18]
[356066127,1741877511115,-515.71,0.00028444,18]
[356066128,1741877511125,-515.71,0.00028444,18]
[356066129,1741877511134,-554.88,0.00028444,18]
[356066130,1741877511144,-615.24,0.00028444,18]
[356066131,1741877511154,-615.24,0.00028444,18]
[356066132,1741877511164,-611.51,0.00028444,18]
[356066133,1741877511174,-943.15,0.00028444,18]
[356066134,1741877511184,-968.62,0.00028444,18]
[356066135,1741877511193,-500.0,0.00028444,18]
[356066136,1741877511203,-500.0,0.00028444,18]
[356066137,1741877511212,-1936.13,0.00028444,18]
[356066138,1741877511223,-2523.86,0.00028444,18]
[356066139,1741877511235,-592.53,0.00028444,18]
[356066140,1741877511245,-548.58,0.00028444,18]
[356066141,1741877511254,-548.58,0.00028444,18]
[356066142,1741877511264,-580.02,0.00028444,18]
[356066143,1741877511273,-500.0,0.00028444,18]
[356066144,1741877511283,-500.0,0.00028444,18]
[356066145,1741877511295,-503.83,0.00028444,18]
[356066146,1741877511305,-753.08,0.00028444,18]
[356066147,1741877511314,-500.0,0.00028444,18]
[356066148,1741877511324,-500.0,0.00028444,18]
[356066149,1741877511333,-500.0,0.00028444,18]
[356066150,1741877511342,-2233.91,0.00028444,18]
[356066151,1741877511353,-531.75,0.00028444,18]
[356066152,1741877511363,-531.75,0.00028444,18]
[356066153,1741877511373,-917.98,0.00028444,18]
[356066154,1741877511383,-500.0,0.00028444,18]
[356066155,1741877511392,-745.19,0.00028444,18]
[356066156,1741877511402,-745.19,0.00028444,18]
[356066157,1741877511411,-3142.78,0.00028444,18]
[356066158,1741877511420,-650.5,0.00028444,18]
[356066159,1741877511430,-500.0,0.00028444,18]
[356066160,1741877511439,-500.0,0.00028444,18]
[356066161,1741877511448,-1181.25,0.00028444,18]